bitfinex-derivatives/quotes_BTCF0:USTF0_20241110
["timestamp","ask_amount","ask_price","bid_price","bid_amount"]
[1731270103589,0.3608,79550.0,79542.0,0.18210462]
[1731270103889,0.3608,79550.0,79543.0,0.18891073]
[1731270104077,0.3608,79550.0,79544.0,0.17332]
[1731270104479,0.3608,79550.0,79549.0,0.18210462]
[1731270104675,0.3608,79550.0,79545.0,0.18891073]
[1731270104884,0.3608,79550.0,79544.0,0.17332]
[1731270105187,0.3608,79550.0,79546.0,0.18978376]
[1731270105388,0.3608,79550.0,79545.0,0.18978376]
[1731270105685,0.7216,79550.0,79544.0,0.17332]
[1731270105988,0.7216,79550.0,79545.0,0.18761506]
[1731270108688,0.3608,79550.0,79545.0,0.18761506]
[1731270109589,0.3608,79550.0,79543.0,0.10119609]
[1731270109590,0.18210462,79547.0,79543.0,0.02069609]
[1731270109886,0.18210462,79547.0,79523.0,0.17252]
[1731270109887,0.3608,79544.0,79526.0,0.00311364]
[1731270110091,0.3608,79531.0,79524.0,0.1624]
[1731270110386,0.7216,79531.0,79524.0,0.0815]
[1731270110788,0.7216,79531.0,79523.0,0.02130853]
[1731270110986,0.3608,79524.0,79523.0,0.02130853]
[1731270113090,0.73804,79524.0,79523.0,0.02130853]
[1731270114583,0.90034,79524.0,79523.0,0.02130853]
[1731270116601,0.3608,79524.0,79523.0,0.02130853]
[1731270120485,0.34052965,79524.0,79523.0,0.21086129]
[1731270120795,0.34894825,79531.0,79523.0,0.29366129]
[1731270120987,0.3608,79540.0,79528.0,0.3608]
[1731270121190,0.3608,79540.0,79523.0,0.29366129]
[1731270121391,0.3608,79528.0,79523.0,0.10410853]
[1731270122096,0.3608,79528.0,79523.0,0.27666853]
[1731270123599,0.3608,79533.0,79523.0,0.27666853]
[1731270123788,0.3608,79533.0,79524.0,0.18860161]
[1731270123997,0.3608,79533.0,79527.0,0.18210462]
[1731270124395,0.3608,79540.0,79528.0,0.25142461]
[1731270124611,0.3608,79540.0,79528.0,0.18860161]
[1731270125101,0.3608,79540.0,79524.0,0.30878876]
[1731270125102,0.3608,79530.0,79524.0,0.30878876]
[1731270125298,0.3608,79530.0,79524.0,0.12141854]
[1731270125492,0.3608,79530.0,79525.0,0.18957675]
[1731270125798,0.3608,79530.0,79524.0,0.12141854]
[1731270126099,0.3608,79540.0,79524.0,0.12141854]
[1731270126100,0.3608,79540.0,79526.0,0.18957675]
[1731270126399,0.3608,79531.0,79523.0,0.27666853]
[1731270126612,0.3608,79531.0,79528.0,0.12141854]
[1731270126796,0.3608,79540.0,79528.0,0.12141854]
[1731270127490,0.3608,79532.0,79528.0,0.12141854]
[1731270127899,0.3608,79540.0,79528.0,0.12141854]
[1731270128093,0.3608,79531.0,79528.0,0.12141854]
[1731270128803,0.3608,79531.0,79523.0,0.27666853]
[1731270129900,0.3608,79531.0,79523.0,0.10410853]
[1731270130090,0.3608,79531.0,79524.0,0.17252]
[1731270131009,0.3608,79531.0,79528.0,0.12141854]
[1731270132503,0.3608,79531.0,79529.0,0.18854466]
[1731270133006,0.3608,79539.0,79529.0,0.25136666]
[1731270133206,0.3608,79539.0,79538.0,0.12141854]
[1731270133997,0.3608,79547.0,79538.0,0.12141854]
[1731270134599,0.3608,79540.0,79532.0,0.12141854]
[1731270135112,0.3608,79547.0,79532.0,0.12141854]
[1731270137206,0.3608,79540.0,79532.0,0.12141854]
[1731270139219,0.3608,79540.0,79539.0,0.12141854]
[1731270140016,0.3608,79540.0,79537.0,0.062816]
[1731270140509,0.3608,79540.0,79538.0,0.26970692]
[1731270141121,0.3608,79540.0,79528.0,0.062823]
[1731270141310,0.3608,79540.0,79535.0,0.12141854]
[1731270144733,0.3608,79540.0,79535.0,0.14236329]
[1731270147925,0.3608,79540.0,79535.0,0.02094475]
[1731270148229,0.3608,79540.0,79526.0,0.0811]
[1731270148431,0.3608,79540.0,79526.0,0.20251854]
[1731270149840,0.3608,79540.0,79526.0,0.14194252]
[1731270150134,0.3608,79533.0,79526.0,0.14194252]
[1731270151335,0.3608,79533.0,79526.0,0.02052398]
[1731270151545,0.3608,79533.0,79509.0,0.00164]
[1731270151546,0.12141854,79527.0,79509.0,0.00164]
[1731270151724,0.12141854,79527.0,79504.0,0.1716]
[1731270151725,0.3608,79512.0,79504.0,0.1716]
[1731270152428,0.3608,79512.0,79506.0,0.14559382]
[1731270152736,0.3608,79516.0,79507.0,0.25037701]
[1731270152936,0.3608,79516.0,79515.0,0.12141854]
[1731270154635,0.3608,79516.0,79508.0,0.12141854]
[1731270155435,0.3608,79516.0,79506.0,0.02446418]
[1731270158135,0.3608,79516.0,79508.0,0.12141854]
[1731270160527,0.3608,79516.0,79506.0,0.02120418]
[1731270160528,0.3608,79516.0,79515.0,0.12141854]
[1731270160933,0.3608,79529.0,79504.0,0.1716]
[1731270160934,0.3608,79529.0,79512.0,0.30567308]
[1731270161241,0.3608,79529.0,79526.0,0.12141854]
[1731270161935,0.3608,79529.0,79520.0,0.12141854]
[1731270162336,0.3608,79529.0,79519.0,0.17164]
[1731270162545,0.3608,79520.0,79509.0,0.17164]
[1731270163236,0.3608,79520.0,79507.0,0.1427655]
[1731270163237,0.3608,79520.0,79508.0,0.17164]
[1731270163834,0.3608,79520.0,79513.0,0.12141854]
[1731270171835,0.12141854,79514.0,79507.0,0.02134696]
[1731270172042,0.062844,79503.0,79500.0,0.00010016]
[1731270172237,0.3608,79501.0,79500.0,0.00010016]
[1731270172437,0.3608,79501.0,79500.0,0.02107021]
[1731270172642,1.03816,79501.0,79500.0,0.00010016]
[1731270172838,0.062851,79493.0,79479.0,0.0747]
[1731270173043,0.3608,79481.0,79479.0,0.02136161]
[1731270173245,0.3608,79481.0,79474.0,0.0024]
[1731270174052,0.3608,79475.0,79474.0,0.0024]
[1731270174451,0.3608,79475.0,79474.0,0.02284449]
[1731270174651,0.423665,79475.0,79474.0,0.0024]
[1731270174848,0.06287,79469.0,79467.0,0.00013051]
[1731270175154,0.3608,79468.0,79452.0,0.12141854]
[1731270175342,0.3608,79461.0,79452.0,0.12141854]
[1731270178655,0.3608,79461.0,79458.0,0.12141854]
[1731270178847,0.00010016,79474.0,79458.0,0.12141854]
[1731270179057,0.00010016,79474.0,79467.0,0.12141854]
[1731270181257,0.3608,79470.0,79467.0,0.12141854]
[1731270182761,0.12141854,79487.0,79467.0,0.12141854]
[1731270182762,0.3608,79504.0,79468.0,0.18884342]
[1731270183057,0.3608,79504.0,79490.0,0.12141854]
[1731270183058,0.3608,79495.0,79490.0,0.12141854]
[1731270183760,0.00013051,79494.0,79490.0,0.12141854]
[1731270184158,0.00013051,79494.0,79481.0,0.1708]
[1731270184458,0.00013051,79494.0,79469.0,0.0791]
[1731270184459,0.12141854,79485.0,79469.0,0.0791]
[1731270184652,0.3608,79478.0,79469.0,0.0791]
[1731270184851,0.48221854,79478.0,79466.0,0.1708]
[1731270185055,0.3608,79469.0,79464.0,0.1708]
[1731270185559,0.3608,79469.0,79461.0,0.1708]
[1731270190962,0.3608,79469.0,79459.0,0.02140112]
[1731270191266,0.3608,79469.0,79458.0,0.17084]
[1731270192454,0.3608,79469.0,79459.0,0.18245811]
[1731270194470,0.3608,79460.0,79457.0,0.02142017]
[1731270194663,0.3608,79460.0,79449.0,0.062886]
[1731270194856,0.3608,79469.0,79458.0,0.3608]
[1731270195058,0.3608,79480.0,79468.0,0.18245811]
[1731270195365,0.3608,79493.0,79479.0,0.18245811]
[1731270196060,0.3608,79493.0,79487.0,0.18245811]
[1731270196465,0.3608,79493.0,79488.0,0.26501803]
[1731270196971,0.3608,79493.0,79489.0,0.0787]
[1731270197270,0.3608,79507.0,79490.0,0.71839999]
[1731270197566,0.3608,79517.0,79494.0,0.06285]
[1731270197766,0.3608,79517.0,79506.0,0.18245811]
[1731270198170,0.0765,79531.0,79506.0,0.18245811]
[1731270198171,0.3608,79523.0,79506.0,0.18245811]
[1731270198362,0.3608,79523.0,79513.0,0.18245811]
[1731270198759,0.3608,79523.0,79506.0,0.44801909]
[1731270199071,0.3608,79523.0,79506.0,0.2588832]
[1731270199468,0.3608,79513.0,79506.0,0.2588832]
[1731270201470,0.3608,79513.0,79507.0,0.06284]
[1731270201869,0.3608,79513.0,79508.0,0.18815409]
[1731270202170,0.3608,79523.0,79508.0,0.18815409]
[1731270202377,0.3608,79523.0,79522.0,0.18245811]
[1731270202570,0.3608,79545.0,79526.0,0.062824]
[1731270202865,0.3608,79545.0,79532.0,0.18245811]
[1731270203266,0.3608,79545.0,79533.0,0.222819]
[1731270203863,0.3608,79545.0,79533.0,0.16]
[1731270205776,0.3608,79545.0,79532.0,0.20335499]
[1731270205968,0.36132,79535.0,79532.0,0.02089688]
[1731270206173,0.36132,79535.0,79527.0,0.0815]
[1731270206374,0.36132,79535.0,79523.0,0.16976]
[1731270206570,0.36132,79535.0,79520.0,0.0208278]
[1731270206775,0.3608,79528.0,79520.0,0.16976]
[1731270207375,0.36132,79535.0,79521.0,0.062829]
[1731270208078,0.00052,79535.0,79526.0,0.062824]
[1731270208385,0.00052,79535.0,79534.0,0.423619]
[1731270208879,0.3608,79553.0,79538.0,0.062815]
[1731270209072,0.3608,79553.0,79539.0,0.141414]
[1731270210881,0.3608,79548.0,79539.0,0.141414]
[1731270211185,0.3608,79548.0,79540.0,0.062814]
[1731270211890,4.043e-05,79546.0,79540.0,0.062814]
[1731270212478,4.043e-05,79546.0,79539.0,0.0786]
[1731270212682,4.043e-05,79546.0,79544.0,0.06281]
[1731270213196,4.043e-05,79546.0,79539.0,0.0786]
[1731270213886,0.3608,79540.0,79539.0,0.0786]
[1731270214185,0.3608,79540.0,79534.0,0.02100573]
[1731270214381,0.3608,79540.0,79533.0,0.062819]
[1731270214683,0.3608,79540.0,79530.0,0.16972]
[1731270215089,0.3608,79540.0,79538.0,0.062815]
[1731270215990,0.3608,79540.0,79533.0,0.423619]
[1731270216285,0.3608,79540.0,79530.0,0.16972]
[1731270216491,0.3608,79533.0,79521.0,0.10594228]
[1731270216693,0.3608,79533.0,79521.0,0.0808]
[1731270216880,0.3608,79533.0,79521.0,0.10131966]
[1731270217085,0.3608,79526.0,79521.0,0.02051966]
[1731270217384,0.3608,79526.0,79518.0,0.53224]
[1731270217592,0.3608,79526.0,79518.0,0.55172839]
[1731270218190,0.3608,79526.0,79518.0,0.02120839]
[1731270218383,0.18245811,79538.0,79510.0,0.0814]
[1731270218384,0.3608,79519.0,79510.0,0.0814]
[1731270218581,0.3608,79519.0,79502.0,0.062844]
[1731270218783,0.3608,79519.0,79499.0,0.18245811]
[1731270218784,0.3608,79519.0,79506.0,0.0211681]
[1731270218988,0.0826,79518.0,79506.0,0.0211681]
[1731270219590,0.0826,79518.0,79508.0,0.062839]
[1731270219793,0.3608,79519.0,79510.0,0.062837]
[1731270219991,0.3608,79527.0,79515.0,0.18245811]
[1731270220291,0.3608,79519.0,79511.0,0.18761119]
[1731270220593,0.3608,79519.0,79506.0,0.2537291]
[1731270220987,0.3608,79519.0,79506.0,0.0840091]
[1731270221185,0.3608,79519.0,79509.0,0.062838]
[1731270221494,0.3608,79519.0,79511.0,0.062837]
[1731270221696,0.3608,79519.0,79512.0,0.062835]
[1731270222084,0.3608,79519.0,79510.0,0.18245811]
[1731270222397,0.3608,79519.0,79517.0,0.18245811]
[1731270222689,0.3608,79519.0,79518.0,0.0815]
[1731270222888,0.3608,79534.0,79518.0,0.63037994]
[1731270223084,4.043e-05,79546.0,79528.0,0.3608]
[1731270223287,0.11205123,79545.0,79536.0,0.3608]
[1731270223491,0.05239201,79544.0,79526.0,0.18245811]
[1731270223693,4.043e-05,79546.0,79526.0,0.18245811]
[1731270223994,4.043e-05,79546.0,79536.0,0.18245811]
[1731270224385,4.043e-05,79546.0,79529.0,0.062822]
[1731270224889,4.043e-05,79546.0,79530.0,0.25227511]
[1731270225285,4.043e-05,79546.0,79530.0,0.062821]
[1731270226194,4.043e-05,79546.0,79531.0,0.062821]
[1731270227300,0.3608,79541.0,79531.0,0.062821]
[1731270227498,0.3608,79541.0,79528.0,0.56577241]
[1731270227694,0.3608,79541.0,79528.0,0.56413241]
[1731270228003,0.3608,79541.0,79529.0,0.18958396]
[1731270230802,0.3608,79541.0,79529.0,0.25240596]
[1731270231098,4.043e-05,79546.0,79529.0,0.25240596]
[1731270232894,4.043e-05,79546.0,79536.0,0.12139199]
[1731270233090,4.043e-05,79546.0,79537.0,0.0769]
[1731270233396,4.043e-05,79546.0,79542.0,0.12139199]
[1731270233798,4.043e-05,79546.0,79538.0,0.082]
[1731270235999,0.0517911,79545.0,79538.0,0.082]
[1731270236194,4.043e-05,79546.0,79538.0,0.082]
[1731270236401,0.3608,79541.0,79538.0,0.082]
[1731270237292,0.3608,79541.0,79537.0,0.02056973]
[1731270237494,0.3608,79541.0,79525.0,0.16868]
[1731270237795,0.05143185,79540.0,79527.0,0.12139199]
[1731270238002,0.3608,79541.0,79527.0,0.12139199]
[1731270238202,0.05146393,79540.0,79527.0,0.12139199]
[1731270238398,0.3608,79541.0,79527.0,0.12139199]
[1731270238599,0.05143926,79540.0,79527.0,0.12139199]
[1731270238800,0.3608,79541.0,79530.0,0.062822]
[1731270239109,0.3608,79541.0,79535.0,0.12139199]
[1731270239802,0.05158561,79540.0,79535.0,0.12139199]
[1731270239995,0.05158561,79539.0,79528.0,0.12139199]
[1731270240201,0.3608,79532.0,79521.0,0.1558]
[1731270240504,0.3608,79532.0,79514.0,0.42428]
[1731270240505,0.3608,79523.0,79514.0,0.17032]
[1731270240706,0.05115183,79522.0,79514.0,0.16868]
[1731270240900,0.05115183,79521.0,79514.0,0.1899341]
[1731270241209,0.04998172,79520.0,79514.0,0.0212541]
[1731270241409,0.04998172,79519.0,79510.0,0.0825]
[1731270241703,0.04998172,79518.0,79510.0,0.0825]
[1731270241901,0.3608,79516.0,79510.0,0.10335791]
[1731270242096,0.04998172,79515.0,79510.0,0.10335791]
[1731270242303,0.3608,79516.0,79510.0,0.10335791]
[1731270242498,0.04984271,79515.0,79510.0,0.10335791]
[1731270242698,0.3608,79516.0,79510.0,0.10335791]
[1731270242924,0.18422699,79514.0,79510.0,0.02085791]
[1731270243095,0.12139199,79514.0,79506.0,0.00012509]
[1731270243297,0.3608,79507.0,79504.0,0.00073]
[1731270243500,0.12139199,79505.0,79504.0,0.00073]
[1731270243700,0.17718408,79505.0,79504.0,0.00073]
[1731270243910,0.2266025,79505.0,79504.0,0.00073]
[1731270244111,0.17081041,79505.0,79504.0,0.00073]
[1731270245603,0.04858945,79505.0,79504.0,0.00073]
[1731270245808,0.3608,79507.0,79505.0,0.062841]
[1731270246120,0.00012509,79513.0,79512.0,0.062836]
[1731270246409,0.00012509,79513.0,79504.0,0.00073]
[1731270246410,0.00012509,79513.0,79504.0,0.07883]
[1731270246611,0.12139199,79506.0,79504.0,0.02171353]
[1731270246909,0.3608,79505.0,79504.0,0.00073]
[1731270247114,0.3608,79505.0,79497.0,0.02119707]
[1731270247311,0.3608,79505.0,79491.0,0.062852]
[1731270247502,0.3608,79505.0,79496.0,0.12139199]
[1731270247905,0.3608,79505.0,79489.0,0.0814]
[1731270247906,0.3608,79505.0,79492.0,0.10066706]
[1731270248102,0.3608,79498.0,79492.0,0.10066706]
[1731270250210,0.18230787,79494.0,79480.0,0.00013117]
[1731270250512,0.3608,79482.0,79480.0,0.00013117]
[1731270252009,0.3608,79489.0,79480.0,0.00013117]
[1731270252214,0.3608,79489.0,79480.0,0.06299217]
[1731270252610,0.3608,79489.0,79482.0,0.062859]
[1731270252815,0.3608,79489.0,79480.0,0.00013117]
[1731270256816,0.3608,79481.0,79480.0,0.00013117]
[1731270258018,0.36090347,79481.0,79480.0,0.00013117]
[1731270261114,0.36090347,79481.0,79465.0,0.077]
[1731270261115,0.73834347,79481.0,79465.0,0.077]
[1731270261317,0.3608,79466.0,79456.0,0.0785]
[1731270262019,0.3608,79466.0,79456.0,0.16215591]
[1731270262415,0.3608,79466.0,79456.0,0.09927591]
[1731270262815,0.3608,79466.0,79456.0,0.16215591]
[1731270263313,0.3608,79466.0,79456.0,0.09927591]
[1731270264818,0.3608,79466.0,79458.0,0.18230787]
[1731270265020,0.36090347,79481.0,79465.0,0.18230787]
[1731270265322,0.00010347,79481.0,79465.0,0.18230787]
[1731270265625,0.00010347,79481.0,79474.0,0.54310787]
[1731270265817,0.00010347,79481.0,79475.0,0.1609]
[1731270266120,0.00010347,79481.0,79475.0,0.244]
[1731270266823,0.3608,79487.0,79475.0,0.306865]
[1731270267017,0.3608,79487.0,79475.0,0.244]
[1731270267411,0.3608,79487.0,79476.0,0.18777872]
[1731270267611,0.3608,79494.0,79482.0,0.18230787]
[1731270267809,0.000147,79493.0,79482.0,0.18230787]
[1731270268120,0.000147,79493.0,79475.0,0.244]
[1731270268121,0.3608,79494.0,79489.0,0.18230787]
[1731270268415,0.38597278,79505.0,79489.0,0.18230787]
[1731270268416,0.38597278,79505.0,79492.0,0.3608]
[1731270268719,0.38597278,79505.0,79490.0,0.35646906]
[1731270268720,0.3608,79505.0,79490.0,0.1678]
[1731270269111,0.3608,79498.0,79481.0,0.3608]
[1731270269427,0.3608,79498.0,79483.0,0.18968903]
[1731270269723,0.3608,79498.0,79482.0,0.1678]
[1731270270113,0.3608,79498.0,79483.0,0.18845555]
[1731270270716,0.3608,79498.0,79490.0,0.18230787]
[1731270270911,0.3608,79505.0,79490.0,0.18230787]
[1731270271119,0.3608,79505.0,79497.0,0.18230787]
[1731270271313,0.3608,79505.0,79498.0,0.2466]
[1731270271513,0.1678,79528.0,79504.0,0.18230787]
[1731270271714,0.04904923,79520.0,79504.0,0.18230787]
[1731270271918,0.3608,79514.0,79504.0,0.18230787]
[1731270272424,0.3608,79514.0,79503.0,0.062843]
[1731270272726,0.3608,79514.0,79504.0,0.18873467]
[1731270273122,0.3608,79514.0,79501.0,0.18871635]
[1731270273323,0.3608,79514.0,79500.0,0.062845]
[1731270273525,0.3608,79514.0,79502.0,0.18871635]
[1731270274021,0.3608,79514.0,79500.0,0.062845]
[1731270274022,0.3608,79514.0,79501.0,0.18871635]
[1731270274214,0.3608,79514.0,79503.0,0.18842973]
[1731270274523,0.3608,79514.0,79501.0,0.18842973]
[1731270274711,0.3608,79514.0,79504.0,0.18842973]
[1731270274917,0.3608,79514.0,79500.0,0.2091061]
[1731270275117,0.3608,79514.0,79498.0,0.2466]
[1731270275520,0.3608,79514.0,79500.0,0.1898996]
[1731270275823,0.3608,79514.0,79498.0,0.2466]
[1731270276019,0.3608,79514.0,79498.0,0.6074]
[1731270276216,0.3608,79514.0,79500.0,0.18967853]
[1731270276417,0.3608,79514.0,79499.0,0.18967853]
[1731270276620,0.3608,79514.0,79498.0,0.60904]
[1731270276822,0.3608,79514.0,79500.0,0.18967853]
[1731270277128,0.3608,79514.0,79499.0,0.18967853]
[1731270277328,0.3608,79514.0,79498.0,0.62967541]
[1731270277517,0.3608,79514.0,79499.0,0.18813066]
[1731270278719,0.3608,79514.0,79500.0,0.02515455]
[1731270282725,0.12153548,79509.0,79498.0,0.62967541]
[1731270283032,0.3608,79506.0,79498.0,0.27059541]
[1731270283935,0.3608,79506.0,79503.0,0.12153548]
[1731270285231,0.36183,79521.0,79503.0,0.12153548]
[1731270285420,0.36183,79521.0,79519.0,0.12153548]
[1731270285727,0.36183,79521.0,79513.0,0.12153548]
[1731270286122,0.36183,79521.0,79513.0,0.28929548]
[1731270286525,0.36183,79521.0,79513.0,0.16776]
[1731270288326,0.36183,79521.0,79513.0,0.18843121]
[1731270289039,0.3608,79521.0,79513.0,0.18843121]
[1731270293546,0.0836,79532.0,79519.0,0.12153548]
[1731270293841,0.3608,79541.0,79528.0,0.12153548]
[1731270294038,0.3608,79541.0,79535.0,0.12153548]
[1731270294039,0.0511877,79540.0,79535.0,0.12153548]
[1731270294243,0.3608,79541.0,79535.0,0.12153548]
[1731270295543,0.3608,79541.0,79530.0,0.3608]
[1731270295739,0.3608,79541.0,79535.0,0.12153548]
[1731270298446,0.1661,79556.0,79540.0,0.3608]
[1731270298647,0.05171582,79555.0,79548.0,0.12153548]
[1731270298942,0.1661,79556.0,79548.0,0.12153548]
[1731270298943,0.05171582,79554.0,79548.0,0.12153548]
[1731270299145,0.05171582,79553.0,79548.0,0.12153548]
[1731270299337,0.05171582,79552.0,79548.0,0.12153548]
[1731270299530,0.1661,79556.0,79548.0,0.12153548]
[1731270299740,0.3608,79552.0,79543.0,0.16668]
[1731270300137,0.3608,79552.0,79541.0,0.0833]
[1731270300138,0.12153548,79549.0,79541.0,0.0833]
[1731270300439,0.3608,79552.0,79541.0,0.16668]
[1731270301239,0.3608,79552.0,79549.0,0.12153548]
[1731270302144,0.0828,79567.0,79551.0,0.3608]
[1731270302341,0.0828,79567.0,79566.0,0.12153548]
[1731270302648,0.3608,79579.0,79566.0,0.48233548]
[1731270302854,0.3608,79590.0,79578.0,0.12153548]
[1731270302855,0.1675,79586.0,79578.0,0.12153548]
[1731270303151,0.1675,79586.0,79569.0,0.06279]
[1731270303152,0.1675,79586.0,79574.0,0.16664]
[1731270303348,0.3608,79583.0,79574.0,0.16664]
[1731270303539,0.3608,79583.0,79575.0,0.18778712]
[1731270303741,0.3608,79583.0,79574.0,0.02082008]
[1731270303940,0.3608,79583.0,79577.0,0.12153548]
[1731270304452,0.3608,79583.0,79578.0,0.1666]
[1731270305150,0.3608,79583.0,79579.0,0.1666]
[1731270306351,0.3608,79583.0,79580.0,0.1666]
[1731270306352,0.12153548,79581.0,79580.0,0.1666]
[1731270306557,0.3608,79583.0,79580.0,0.1666]
[1731270310044,0.3608,79583.0,79580.0,0.16656]
[1731270311060,0.3608,79583.0,79580.0,0.186999]
[1731270311854,0.3608,79583.0,79580.0,0.020439]
[1731270312054,0.3608,79583.0,79569.0,0.062797]
[1731270312055,0.12153548,79582.0,79564.0,0.12153548]
[1731270312361,0.7216,79574.0,79563.0,0.062802]
[1731270312563,0.3608,79566.0,79565.0,0.02075462]
[1731270312760,0.3608,79566.0,79565.0,0.00012941]
[1731270315666,0.3608,79574.0,79565.0,0.00012941]
[1731270315870,0.3608,79578.0,79573.0,0.12153548]
[1731270316062,0.3608,79578.0,79567.0,0.12153548]
[1731270317167,0.3608,79571.0,79567.0,0.12153548]
[1731270317971,0.3608,79571.0,79565.0,0.00012941]
[1731270318463,0.3608,79571.0,79565.0,0.16568941]
[1731270318664,0.3608,79571.0,79569.0,0.12153548]
[1731270318866,0.3608,79571.0,79569.0,0.18433248]
[1731270319070,0.32857248,79571.0,79570.0,0.18912106]
[1731270319262,0.33693329,79578.0,79575.0,0.062792]
[1731270319463,0.3608,79586.0,79577.0,0.12153548]
[1731270319660,0.3608,79586.0,79578.0,0.0829]
[1731270320472,0.0773,79594.0,79578.0,0.0829]
[1731270320668,0.0773,79594.0,79585.0,0.12153548]
[1731270322169,0.3608,79588.0,79585.0,0.12153548]
[1731270324275,0.3608,79595.0,79585.0,0.12153548]
[1731270324276,0.3608,79595.0,79585.0,0.14197627]
[1731270324477,0.3608,79595.0,79585.0,0.02044079]
[1731270324677,0.12153548,79592.0,79578.0,0.0829]
[1731270324868,0.12153548,79582.0,79563.0,0.12153548]
[1731270325079,0.12153548,79582.0,79572.0,0.16556]
[1731270325381,0.3608,79586.0,79572.0,0.16556]
[1731270325772,0.3608,79586.0,79571.0,0.10430235]
[1731270325773,0.3608,79578.0,79571.0,0.02120235]
[1731270325971,0.3608,79578.0,79571.0,0.16556]
[1731270327165,0.3608,79578.0,79576.0,0.12153548]
[1731270327682,0.3608,79578.0,79571.0,0.16556]
[1731270329879,0.3608,79578.0,79576.0,0.18432648]
[1731270330277,0.05141259,79577.0,79576.0,0.18432648]
[1731270330871,0.05141259,79577.0,79576.0,0.12153548]
[1731270331073,0.05146382,79577.0,79576.0,0.12153548]
[1731270331273,0.05146382,79577.0,79571.0,0.16556]
[1731270331481,0.05133735,79576.0,79571.0,0.16556]
[1731270331671,0.3608,79578.0,79571.0,0.16556]
[1731270331883,0.3608,79578.0,79575.0,0.12153548]
[1731270334176,0.3608,79586.0,79576.0,0.2625975]
[1731270334487,0.3608,79586.0,79585.0,0.12153548]
[1731270334876,0.3608,79586.0,79585.0,0.49849548]
[1731270335085,0.3608,79586.0,79585.0,0.37696]
[1731270335390,0.3608,79586.0,79585.0,0.0726]
[1731270335684,0.3608,79586.0,79585.0,0.23816]
[1731270336872,0.3608,79586.0,79585.0,0.25902045]
[1731270337283,0.3608,79586.0,79585.0,0.44640537]
[1731270337877,0.3608,79597.0,79585.0,0.44640537]
[1731270338078,0.3608,79597.0,79593.0,0.12153548]
[1731270339282,0.05249656,79596.0,79593.0,0.12153548]
[1731270339488,0.05249656,79595.0,79593.0,0.12153548]
[1731270339689,0.3608,79597.0,79593.0,0.12153548]
[1731270339690,0.05249656,79594.0,79593.0,0.12153548]
[1731270339879,0.05249656,79594.0,79587.0,0.12153548]
[1731270340083,0.3608,79597.0,79587.0,0.12153548]
[1731270340290,0.05246045,79596.0,79587.0,0.12153548]
[1731270340485,0.05246045,79595.0,79587.0,0.12153548]
[1731270340684,0.05246045,79594.0,79593.0,0.12153548]
[1731270341390,0.05246045,79594.0,79586.0,0.073]
[1731270341391,0.05244874,79594.0,79587.0,0.12153548]
[1731270341594,0.05244874,79593.0,79587.0,0.12153548]
[1731270341775,0.3608,79597.0,79587.0,0.12153548]
[1731270341981,0.05245188,79596.0,79587.0,0.12153548]
[1731270342178,0.3608,79597.0,79587.0,0.12153548]
[1731270342587,0.0524871,79596.0,79587.0,0.12153548]
[1731270342889,0.3608,79589.0,79587.0,0.12153548]
[1731270343700,0.3608,79589.0,79586.0,0.135783]
[1731270343878,0.3608,79589.0,79587.0,0.062783]
[1731270344289,0.3608,79589.0,79588.0,0.18769731]
[1731270344793,0.3608,79589.0,79588.0,0.12153548]
[1731270345185,0.41341799,79589.0,79588.0,0.12153548]
[1731270345391,0.41341799,79589.0,79586.0,0.073]
[1731270345581,0.05253623,79588.0,79587.0,0.12153548]
[1731270346289,0.3608,79589.0,79587.0,0.12153548]
[1731270348983,0.3608,79589.0,79587.0,0.18431848]
[1731270349187,0.1,79600.0,79588.0,0.54897772]
[1731270349392,0.11273705,79599.0,79596.0,0.12153548]
[1731270349697,0.1,79600.0,79596.0,0.12153548]
[1731270349698,0.11273705,79598.0,79596.0,0.12153548]
[1731270349994,0.11294913,79597.0,79596.0,0.12153548]
[1731270350295,0.41362307,79597.0,79596.0,0.12153548]
[1731270350686,0.41362307,79597.0,79590.0,0.12153548]
[1731270350998,0.05282307,79596.0,79590.0,0.12153548]
[1731270351192,0.05282307,79595.0,79590.0,0.12153548]
[1731270351495,0.3608,79597.0,79590.0,0.12153548]
[1731270351690,0.05248958,79596.0,79590.0,0.12153548]
[1731270351897,0.3608,79597.0,79590.0,0.12153548]
[1731270352999,0.3608,79597.0,79596.0,0.12153548]
[1731270354298,0.73772,79597.0,79585.0,0.02086045]
[1731270354492,0.73772,79597.0,79568.0,0.02513154]
[1731270354493,0.3608,79586.0,79578.0,0.12153548]
[1731270354692,0.3608,79586.0,79584.0,0.12153548]
[1731270355110,0.3608,79586.0,79584.0,0.18432048]
[1731270355291,0.3608,79586.0,79584.0,0.12153548]
[1731270357791,0.3608,79586.0,79584.0,0.14278864]
[1731270359502,4.75e-05,79585.0,79584.0,0.14278864]
[1731270361206,4.75e-05,79585.0,79584.0,0.02125316]
[1731270361408,4.75e-05,79585.0,79579.0,0.02513123]
[1731270361707,4.75e-05,79585.0,79582.0,0.12153548]
[1731270362003,4.75e-05,79585.0,79584.0,0.062785]
[1731270362306,4.75e-05,79585.0,79582.0,0.12153548]
[1731270365608,4.75e-05,79585.0,79582.0,0.1422318]
[1731270367511,4.75e-05,79585.0,79582.0,0.02069632]
[1731270367701,4.75e-05,79585.0,79579.0,0.02513123]
[1731270367903,4.75e-05,79585.0,79577.0,0.02111082]
[1731270367904,0.062786,79584.0,79577.0,0.02111082]
[1731270368104,0.3608,79578.0,79574.0,0.1503]
[1731270368905,0.3608,79578.0,79574.0,0.17094006]
[1731270369707,0.3608,79578.0,79574.0,0.02064006]
[1731270369908,0.3608,79578.0,79568.0,0.02513154]
[1731270369909,0.3608,79578.0,79577.0,0.18432648]
[1731270370310,0.3608,79578.0,79577.0,0.37198714]
[1731270370515,0.3281369,79578.0,79577.0,0.37198714]
[1731270371114,0.3281369,79578.0,79577.0,0.18766066]
[1731270371312,0.3281369,79578.0,79577.0,0.30919614]
[1731270371615,0.3281369,79578.0,79577.0,0.12153548]
[1731270371916,0.3608,79594.0,79582.0,0.062787]
[1731270372216,0.1,79600.0,79593.0,0.12153548]
[1731270372424,0.1,79600.0,79599.0,0.12153548]
[1731270372916,0.1,79600.0,79599.0,0.16452]
[1731270373416,0.1,79600.0,79599.0,0.28605548]